[Event "22nd ETCC Women 2019"]
[Site "Batumi"]
[Date "2019.10.30"]
[Round "6.9"]
[White "Cramling, Pia"]
[Black "Houska, Jovanka"]
[Result "1-0"]
[ECO "D31"]
[WhiteElo "2462"]
[BlackElo "2430"]
[Annotator "ChessBase"]
[PlyCount "79"]
[EventDate "2019.10.24"]
[EventType "team-tourn"]
[EventCountry "GEO"]
[SourceTitle "playchess.com"]
[Source "ChessBase"]
[SourceQuality "1"]
[WhiteTeam "Sweden"]
[BlackTeam "England"]
[WhiteTeamCountry "SWE"]
[BlackTeamCountry "ENG"]
[TimeControl "40/5400+30:1800+30"]

1. c4 {[%emt 0:00:00]} e6 {[%emt 0:00:00]} 2. Nc3 {[%emt 0:00:00]} d5 {[%emt 0:00:00]} 3. d4 {[%emt 0:00:05]} Be7 {[%emt 0:00:00]} 4. cxd5 {[%emt 0:02:24]} exd5 {[%emt 0:00:04]} 5. Bf4 {[%emt 0:00:20]} c6 {[%emt 0:00:15]} 6. e3 {[%emt 0:00:22]} Bf5 {[%emt 0:00:04]} 7. Nge2 {[%emt 0:00:26]} Nd7 {[%emt 0:00:47]} 8. f3 {[%emt 0:10:31]} Ngf6 {[%emt 0:10:21]} 9. g4 {[%emt 0:07:48]} Be6 {[%emt 0:00:09]} 10. Bg3 {[%emt 0:01:38]} Nf8 {[%emt 0:15:31]} 11. Nf4 {[%emt 0:04:21]} Bd6 {[%emt 0:03:57]} 12. Bd3 {[%emt 0:03:17]} g5 {[%emt 0:07:05]} 13. Nxe6 {[%emt 0:03:27]} Nxe6 {[%emt 0:00:08]} 14. Qe2 {[%emt 0:04:49]} h5 {[%emt 0:03:01]} 15. O-O-O {[%emt 0:04:25]} h4 {[%emt 0:09:41]} 16. Bxd6 {[%emt 0:02:14]} Qxd6 {[%emt 0:00:04]} 17. Bf5 {[%emt 0:01:01]} O-O-O {[%emt 0:03:31]} 18. e4 {[%emt 0:20:09]} Qf4+ {[%emt 0:01:58]} 19. Kb1 {[%emt 0:09:01]} Kb8 {[%emt 0:02:05]} 20. Rhf1 {[%emt 0:05:32]} Ng7 {[%emt 0:20:41]} 21. Qc2 {[%emt 0:00:16]} Nxf5 {[%emt 0:03:37]} 22. gxf5 {[%emt 0:00:12]} Qc7 {[%emt 0:00:09]} 23. e5 {[%emt 0:02:35]} Nh5 {[%emt 0:00:03]} 24. f6 {[%emt 0:00:20]} Nf4 {[%emt 0:00:03]} 25. Ne2 {[%emt 0:00:45]} Ne6 {[%emt 0:00:42]} 26. f4 {[%emt 0:00:30]} c5 {[%emt 0:00:05]} 27. f5 {[%emt 0:03:40]} Nxd4 {[%emt 0:03:27]} 28. Nxd4 {[%emt 0:00:04]} cxd4 {[%emt 0:00:03]} 29. Qxc7+ {[%emt 0:00:07]} Kxc7 {[%emt 0:00:10]} 30. Rxd4 {[%emt 0:00:02]} h3 {[%emt 0:05:48]} 31. Kc2 {[%emt 0:02:12]} Rde8 {[%emt 0:10:39]} 32. Re1 {[%emt 0:01:38]} Rh6 {[%emt 0:00:11]} 33. Kd2 {[%emt 0:00:47]} g4 {[%emt 0:00:38]} 34. Rxg4 {[%emt 0:01:13]} Rh5 {[%emt 0:00:03]} 35. Rg7 {[%emt 0:04:05]} Rxf5 {[%emt 0:01:39]} 36. Rxf7+ {[%emt 0:00:27]} Kc6 {[%emt 0:00:02]} 37. e6 {[%emt 0:01:48]} Rf2+ {[%emt 0:00:13]} 38. Kd3 {[%emt 0:00:54]} Rxh2 {[%emt 0:01:29]} 39. Rh7 {[%emt 0:01:03]} Kd6 {[%emt 0:00:11]} 40. f7 {[%emt 0:00:00]} 1-0

[Event "22nd ETCC Women 2019"]
[Site "Batumi"]
[Date "2019.10.30"]
[Round "6.9"]
[White "Batsiashvili, Nino"]
[Black "Socko, Monika"]
[Result "1-0"]
[ECO "A13"]
[WhiteElo "2422"]
[BlackElo "2417"]
[Annotator "NA"]
[PlyCount "81"]
[EventDate "2019.10.24"]
[EventType "team-tourn"]
[EventCountry "GEO"]
[SourceTitle "playchess.com"]
[Source "ChessBase"]
[SourceQuality "1"]
[WhiteTeam "Georgia"]
[BlackTeam "Poland"]
[WhiteTeamCountry "GEO"]
[BlackTeamCountry "POL"]
[TimeControl "40/5400+30:1800+30"]

1. Nf3 {[%emt 0:00:00]} Nf6 {[%emt 0:00:41]} 2. c4 {[%emt 0:00:00]} e6 {[%emt 0:02:02]} 3. g3 {[%emt 0:00:00]} d5 {[%emt 0:00:48]} 4. Bg2 {[%emt 0:00:00]} dxc4 {[%emt 0:01:12]} 5. O-O {[%emt 0:00:42]} Nbd7 {[%emt 0:01:59]} 6. Qc2 {[%emt 0:00:58]} a6 {[%emt 0:00:39]} 7. a4 {[%emt 0:00:07]} c5 {[%emt 0:04:23]} 8. a5 {[%emt 0:00:26]} Be7 {[%emt 0:00:32]} 9. Qxc4 {[%emt 0:01:06]} O-O {[%emt 0:01:57]} 10. d3 {[%emt 0:03:48]} b5 {[%emt 0:03:04]} 11. axb6 {[%emt 0:00:08]} Nxb6 {[%emt 0:00:02]} 12. Qc2 {[%emt 0:01:14]} Bb7 {[%emt 0:00:58]} 13. Bd2 {[%emt 0:01:29]} Nbd5 {[%emt 0:03:05]} 14. Ba5 {[%emt 0:01:57]} Qb8 {[%emt 0:01:30]} 15. Na3 {[%emt 0:03:55]} Nb4 {[%emt 0:02:09]} 16. Qc1 {[%emt 0:16:58]} e5 {[%emt 0:02:31]} 17. Nc4 {[%emt 0:04:17]} e4 {[%emt 0:01:44]} 18. dxe4 {[%emt 0:04:11]} Bxe4 {[%emt 0:00:32]} 19. Nh4 {[%emt 0:09:05]} Bxg2 {[%emt 0:06:41]} 20. Kxg2 {[%emt 0:00:18]} Qb7+ {[%emt 0:01:37]} 21. Kg1 {[%emt 0:02:16]} Qe4 {[%emt 0:05:23]} 22. Qf4 {[%emt 0:05:30]} Qxf4 {[%emt 0:12:33]} 23. gxf4 {[%emt 0:00:03]} Nfd5 {[%emt 0:01:43]} 24. Nf5 {[%emt 0:01:36]} Rfe8 {[%emt 0:05:18]} 25. e3 {[%emt 0:05:50]} Bf8 {[%emt 0:01:18]} 26. Rfd1 {[%emt 0:00:15]} g6 {[%emt 0:01:20]} 27. Ng3 {[%emt 0:01:05]} h5 {[%emt 0:05:56]} 28. Rd2 {[%emt 0:04:55]} Nf6 {[%emt 0:02:23]} 29. f3 {[%emt 0:00:31]} Ra7 {[%emt 0:09:02]} 30. Rad1 {[%emt 0:01:29]} Kg7 {[%emt 0:01:36]} 31. Ne2 {[%emt 0:05:40]} Rb7 {[%emt 0:01:22]} 32. Nc3 {[%emt 0:08:53]} Nc6 {[%emt 0:02:29]} 33. Bb6 {[%emt 0:00:08]} Nb8 {[%emt 0:10:50]} 34. Na4 {[%emt 0:01:52]} Rc8 {[%emt 0:00:27]} 35. Ba5 {[%emt 0:01:37]} Rd7 {[%emt 0:00:20]} 36. Bc3 {[%emt 0:00:30]} Rxd2 {[%emt 0:02:29]} 37. Rxd2 {[%emt 0:00:01]} Be7 {[%emt 0:01:19]} 38. Nab6 {[%emt 0:00:53]} Rc6 {[%emt 0:00:41]} 39. Nd5 {[%emt 0:00:55]} Bd8 {[%emt 0:00:36]} 40. Nxf6 {[%emt 0:00:00]} Bxf6 {[%emt 0:00:00]} 41. Rd8 {[%emt 0:00:52]} 1-0

[Event "22nd ETCC Women 2019"]
[Site "Batumi"]
[Date "2019.10.30"]
[Round "6.10"]
[White "Zawadzka, Jolanta"]
[Black "Khomeriki, Nino"]
[Result "1-0"]
[ECO "C90"]
[WhiteElo "2406"]
[BlackElo "2315"]
[Annotator "NA"]
[PlyCount "131"]
[EventDate "2019.10.24"]
[EventType "team-tourn"]
[EventCountry "GEO"]
[SourceTitle "playchess.com"]
[Source "ChessBase"]
[SourceQuality "1"]
[WhiteTeam "Poland"]
[BlackTeam "Georgia"]
[WhiteTeamCountry "POL"]
[BlackTeamCountry "GEO"]
[TimeControl "40/5400+30:1800+30"]

1. e4 {[%emt 0:00:00]} e5 {[%emt 0:00:00]} 2. Nf3 {[%emt 0:00:00]} Nc6 {[%emt 0:00:00]} 3. Bb5 {[%emt 0:00:00]} a6 {[%emt 0:00:00]} 4. Ba4 {[%emt 0:00:00]} Nf6 {[%emt 0:00:00]} 5. d3 {[%emt 0:00:01]} b5 {[%emt 0:00:12]} 6. Bb3 {[%emt 0:00:06]} Be7 {[%emt 0:00:05]} 7. O-O {[%emt 0:00:12]} d6 {[%emt 0:00:22]} 8. c3 {[%emt 0:00:16]} O-O {[%emt 0:00:18]} 9. Re1 {[%emt 0:00:18]} Na5 {[%emt 0:01:01]} 10. Bc2 {[%emt 0:01:04]} c5 {[%emt 0:00:10]} 11. Nbd2 {[%emt 0:00:21]} Nc6 {[%emt 0:00:11]} 12. Nf1 {[%emt 0:00:22]} h6 {[%emt 0:00:07]} 13. Ng3 {[%emt 0:00:30]} Be6 {[%emt 0:00:32]} 14. h3 {[%emt 0:00:19]} Qc7 {[%emt 0:14:27]} 15. Bb3 {[%emt 0:08:24]} Bxb3 {[%emt 0:21:24]} 16. axb3 {[%emt 0:03:01]} Rfe8 {[%emt 0:00:25]} 17. Nf5 {[%emt 0:04:43]} Bf8 {[%emt 0:04:39]} 18. Nh2 {[%emt 0:05:04]} Ne7 {[%emt 0:08:13]} 19. Ne3 {[%emt 0:18:21]} d5 {[%emt 0:04:20]} 20. exd5 {[%emt 0:11:23]} Nfxd5 {[%emt 0:01:55]} 21. Qf3 {[%emt 0:01:49]} Nf4 {[%emt 0:06:24]} 22. Neg4 {[%emt 0:10:48]} Nfg6 {[%emt 0:02:39]} 23. Nf1 {[%emt 0:07:01]} f5 {[%emt 0:09:56]} 24. Ngh2 {[%emt 0:02:13]} Qd7 {[%emt 0:03:54]} 25. g4 {[%emt 0:02:34]} f4 {[%emt 0:03:43]} 26. Qe4 {[%emt 0:01:30]} Qd5 {[%emt 0:03:10]} 27. Qxd5+ {[%emt 0:04:21]} Nxd5 {[%emt 0:00:02]} 28. Nf3 {[%emt 0:00:13]} Nf6 {[%emt 0:03:24]} 29. N1d2 {[%emt 0:03:12]} Rad8 {[%emt 0:05:06]} 30. Rxa6 {[%emt 0:02:03]} Rxd3 {[%emt 0:00:05]} 31. g5 {[%emt 0:01:46]} hxg5 {[%emt 0:00:05]} 32. Nxg5 {[%emt 0:00:18]} Nh4 {[%emt 0:00:06]} 33. Kf1 {[%emt 0:03:42]} Nf5 {[%emt 0:02:55]} 34. Kg2 {[%emt 0:04:34]} Nd6 {[%emt 0:02:57]} 35. Nde4 {[%emt 0:01:41]} Ndxe4 {[%emt 0:00:13]} 36. Nxe4 {[%emt 0:00:21]} Nxe4 {[%emt 0:02:35]} 37. Rxe4 {[%emt 0:00:04]} g5 {[%emt 0:01:42]} 38. Rg6+ {[%emt 0:01:43]} Kf7 {[%emt 0:00:05]} 39. Rxg5 {[%emt 0:00:21]} Bh6 {[%emt 0:01:08]} 40. Bxf4 {[%emt 0:00:00]} Bxg5 {[%emt 0:00:00]} 41. Bxg5 {[%emt 0:02:45]} Ke6 {[%emt 0:03:36]} 42. Be3 {[%emt 0:05:12]} Rg8+ {[%emt 0:11:55]} 43. Kf3 {[%emt 0:01:15]} Rd7 {[%emt 0:00:35]} 44. Rh4 {[%emt 0:02:22]} Rc7 {[%emt 0:06:11]} 45. Ke4 {[%emt 0:01:21]} Rg6 {[%emt 0:00:59]} 46. Rh5 {[%emt 0:03:09]} Kd6 {[%emt 0:00:16]} 47. f4 {[%emt 0:02:06]} Rf7 {[%emt 0:02:27]} 48. Rxe5 {[%emt 0:01:37]} Re6 {[%emt 0:04:25]} 49. Bxc5+ {[%emt 0:00:20]} Kd7 {[%emt 0:00:01]} 50. Kd5 {[%emt 0:08:32]} Rh6 {[%emt 0:01:58]} 51. Be3 {[%emt 0:00:26]} b4 {[%emt 0:02:27]} 52. Kc5 {[%emt 0:01:22]} bxc3 {[%emt 0:00:22]} 53. bxc3 {[%emt 0:00:02]} Rxh3 {[%emt 0:00:05]} 54. b4 {[%emt 0:01:09]} Kc7 {[%emt 0:00:22]} 55. c4 {[%emt 0:00:33]} Rh2 {[%emt 0:01:15]} 56. b5 {[%emt 0:00:55]} Rb2 {[%emt 0:00:02]} 57. Bd4 {[%emt 0:00:58]} Rb1 {[%emt 0:00:16]} 58. Re6 {[%emt 0:00:58]} Kb7 {[%emt 0:00:52]} 59. Rb6+ {[%emt 0:00:55]} Kc8 {[%emt 0:00:50]} 60. Be5 {[%emt 0:00:13]} Ra7 {[%emt 0:00:41]} 61. Rh6 {[%emt 0:01:38]} Rf7 {[%emt 0:00:32]} 62. Kc6 {[%emt 0:00:54]} Rf8 {[%emt 0:00:19]} 63. b6 {[%emt 0:01:15]} Rb4 {[%emt 0:00:10]} 64. c5 {[%emt 0:00:38]} Rd8 {[%emt 0:00:25]} 65. Rh7 {[%emt 0:00:35]} Re8 {[%emt 0:00:23]} 66. Rc7+ {[%emt 0:00:17]} 1-0

[Event "22nd ETCC Women 2019"]
[Site "Batumi"]
[Date "2019.10.30"]
[Round "6.10"]
[White "Toma, Katarzyna"]
[Black "Frisk, Ellinor"]
[Result "1-0"]
[ECO "B35"]
[WhiteElo "2272"]
[BlackElo "2227"]
[Annotator "NA"]
[PlyCount "93"]
[EventDate "2019.10.24"]
[EventType "team-tourn"]
[EventCountry "GEO"]
[SourceTitle "playchess.com"]
[Source "ChessBase"]
[SourceQuality "1"]
[WhiteTeam "England"]
[BlackTeam "Sweden"]
[WhiteTeamCountry "ENG"]
[BlackTeamCountry "SWE"]
[TimeControl "40/5400+30:1800+30"]

1. e4 {[%emt 0:00:00]} c5 {[%emt 0:00:00]} 2. Nf3 {[%emt 0:00:00]} g6 {[%emt 0:00:00]} 3. d4 {[%emt 0:00:00]} cxd4 {[%emt 0:00:00]} 4. Nxd4 {[%emt 0:00:00]} Bg7 {[%emt 0:00:10]} 5. Be3 {[%emt 0:00:04]} Nc6 {[%emt 0:00:16]} 6. Nc3 {[%emt 0:00:09]} Nf6 {[%emt 0:00:13]} 7. Bc4 {[%emt 0:00:10]} O-O {[%emt 0:00:19]} 8. Bb3 {[%emt 0:00:10]} a5 {[%emt 0:00:18]} 9. O-O {[%emt 0:00:14]} a4 {[%emt 0:00:18]} 10. Nxa4 {[%emt 0:00:10]} Nxe4 {[%emt 0:00:09]} 11. Nb5 {[%emt 0:00:08]} d5 {[%emt 0:00:22]} 12. Bb6 {[%emt 0:03:13]} Qd7 {[%emt 0:00:26]} 13. Qe2 {[%emt 0:00:27]} e6 {[%emt 0:41:49]} 14. Rad1 {[%emt 0:06:51]} Na5 {[%emt 0:06:17]} 15. Be3 {[%emt 0:13:29]} Qc6 {[%emt 0:03:39]} 16. Nb6 {[%emt 0:06:22]} Ra6 {[%emt 0:00:41]} 17. Nxd5 {[%emt 0:02:16]} exd5 {[%emt 0:01:34]} 18. Bxd5 {[%emt 0:00:08]} Qe8 {[%emt 0:09:22]} 19. Nc7 {[%emt 0:01:37]} Qa4 {[%emt 0:00:02]} 20. Nxa6 {[%emt 0:02:30]} bxa6 {[%emt 0:00:01]} 21. Bb6 {[%emt 0:16:14]} Nd6 {[%emt 0:15:40]} 22. Qe7 {[%emt 0:04:56]} Nab7 {[%emt 0:03:36]} 23. b3 {[%emt 0:15:24]} Qb5 {[%emt 0:00:04]} 24. Qc7 {[%emt 0:01:06]} Bf6 {[%emt 0:06:51]} 25. c4 {[%emt 0:00:44]} Qb4 {[%emt 0:00:26]} 26. Bxb7 {[%emt 0:14:35]} Nxb7 {[%emt 0:00:07]} 27. Qc6 {[%emt 0:00:10]} Bg7 {[%emt 0:02:47]} 28. h3 {[%emt 0:00:31]} Qa3 {[%emt 0:01:06]} 29. Rd2 {[%emt 0:00:39]} h5 {[%emt 0:01:12]} 30. c5 {[%emt 0:01:22]} Qb4 {[%emt 0:00:32]} 31. Rfd1 {[%emt 0:00:08]} Be5 {[%emt 0:00:59]} 32. Qd5 {[%emt 0:01:09]} Qf4 {[%emt 0:01:10]} 33. g3 {[%emt 0:01:06]} Qf6 {[%emt 0:00:23]} 34. Re2 {[%emt 0:02:02]} Bb8 {[%emt 0:00:42]} 35. Kg2 {[%emt 0:02:22]} h4 {[%emt 0:00:17]} 36. Rde1 {[%emt 0:01:08]} hxg3 {[%emt 0:01:29]} 37. fxg3 {[%emt 0:00:10]} Kg7 {[%emt 0:02:11]} 38. c6 {[%emt 0:01:19]} Rh8 {[%emt 0:00:20]} 39. Bd4 {[%emt 0:01:26]} Bxh3+ {[%emt 0:00:21]} 40. Kg1 {[%emt 0:00:00]} Ba7 {[%emt 0:00:00]} 41. Bxa7 {[%emt 0:00:09]} Be6 {[%emt 0:07:49]} 42. Rxe6 {[%emt 0:04:27]} fxe6 {[%emt 0:02:25]} 43. Qd7+ {[%emt 0:00:04]} Kg8 {[%emt 0:02:01]} 44. cxb7 {[%emt 0:01:35]} Rh1+ {[%emt 0:00:46]} 45. Kxh1 {[%emt 0:00:04]} Qf3+ {[%emt 0:00:20]} 46. Kh2 {[%emt 0:00:04]} Qh5+ {[%emt 0:00:08]} 47. Kg1 {[%emt 0:00:07]} 1-0

[Event "22nd ETCC Women 2019"]
[Site "Batumi"]
[Date "2019.10.30"]
[Round "6.11"]
[White "Khukhashvili, Sopiko"]
[Black "Cyfka, Karina"]
[Result "0-1"]
[ECO "E19"]
[WhiteElo "2341"]
[BlackElo "2412"]
[Annotator "NA"]
[PlyCount "106"]
[EventDate "2019.10.24"]
[EventType "team-tourn"]
[EventCountry "GEO"]
[SourceTitle "playchess.com"]
[Source "ChessBase"]
[SourceQuality "1"]
[WhiteTeam "Georgia"]
[BlackTeam "Poland"]
[WhiteTeamCountry "GEO"]
[BlackTeamCountry "POL"]
[TimeControl "40/5400+30:1800+30"]

1. Nf3 {[%emt 0:00:00]} Nf6 {[%emt 0:00:21]} 2. c4 {[%emt 0:00:00]} e6 {[%emt 0:02:05]} 3. g3 {[%emt 0:00:21]} a6 {[%emt 0:00:06]} 4. Bg2 {[%emt 0:00:41]} b5 {[%emt 0:00:36]} 5. b3 {[%emt 0:01:54]} Bb7 {[%emt 0:05:12]} 6. Nc3 {[%emt 0:00:33]} b4 {[%emt 0:10:53]} 7. Na4 {[%emt 0:00:34]} Be7 {[%emt 0:01:25]} 8. O-O {[%emt 0:04:46]} O-O {[%emt 0:01:46]} 9. d4 {[%emt 0:04:06]} d6 {[%emt 0:09:25]} 10. Be3 {[%emt 0:11:54]} Nbd7 {[%emt 0:01:06]} 11. c5 {[%emt 0:08:43]} Nd5 {[%emt 0:09:05]} 12. Qc1 {[%emt 0:02:12]} Nxe3 {[%emt 0:06:24]} 13. Qxe3 {[%emt 0:00:28]} Nf6 {[%emt 0:02:55]} 14. Rac1 {[%emt 0:00:54]} a5 {[%emt 0:00:44]} 15. Ne1 {[%emt 0:09:37]} Bxg2 {[%emt 0:04:43]} 16. Nxg2 {[%emt 0:00:11]} dxc5 {[%emt 0:01:54]} 17. dxc5 {[%emt 0:08:11]} Nd5 {[%emt 0:01:18]} 18. Qf3 {[%emt 0:00:45]} Bf6 {[%emt 0:02:00]} 19. Rfd1 {[%emt 0:02:22]} Qe7 {[%emt 0:03:13]} 20. e4 {[%emt 0:02:26]} Nc3 {[%emt 0:00:32]} 21. Nxc3 {[%emt 0:00:30]} Bxc3 {[%emt 0:01:24]} 22. Nf4 {[%emt 0:00:27]} Rad8 {[%emt 0:07:05]} 23. Rxd8 {[%emt 0:12:30]} Rxd8 {[%emt 0:07:02]} 24. Rd1 {[%emt 0:04:58]} Bd4 {[%emt 0:02:52]} 25. Nd3 {[%emt 0:07:36]} e5 {[%emt 0:00:55]} 26. Rc1 {[%emt 0:03:34]} Bc3 {[%emt 0:02:07]} 27. Kg2 {[%emt 0:04:41]} g6 {[%emt 0:01:08]} 28. Rc2 {[%emt 0:04:44]} Kg7 {[%emt 0:02:28]} 29. Re2 {[%emt 0:01:51]} Bd4 {[%emt 0:05:50]} 30. Rc2 {[%emt 0:00:15]} Bc3 {[%emt 0:00:24]} 31. Re2 {[%emt 0:00:05]} a4 {[%emt 0:01:18]} 32. bxa4 {[%emt 0:02:09]} Qd7 {[%emt 0:03:19]} 33. Nb2 {[%emt 0:00:06]} Qd4 {[%emt 0:00:24]} 34. g4 {[%emt 0:01:35]} Bxb2 {[%emt 0:01:17]} 35. g5 {[%emt 0:00:02]} Bc3 {[%emt 0:01:14]} 36. Re3 {[%emt 0:00:36]} Qd7 {[%emt 0:00:41]} 37. a3 {[%emt 0:00:52]} Bd4 {[%emt 0:00:58]} 38. Rd3 {[%emt 0:00:31]} bxa3 {[%emt 0:00:22]} 39. Rxa3 {[%emt 0:00:23]} Bxc5 {[%emt 0:00:28]} 40. Rb3 {[%emt 0:00:00]} Qe6 {[%emt 0:00:00]} 41. Rb2 {[%emt 0:01:27]} Ra8 {[%emt 0:03:50]} 42. Qd1 {[%emt 0:05:48]} Bd4 {[%emt 0:02:58]} 43. Rb5 {[%emt 0:00:33]} f6 {[%emt 0:04:29]} 44. Qc2 {[%emt 0:00:43]} Rf8 {[%emt 0:04:38]} 45. f3 {[%emt 0:04:50]} fxg5 {[%emt 0:01:37]} 46. h3 {[%emt 0:00:02]} c5 {[%emt 0:04:13]} 47. a5 {[%emt 0:00:24]} c4 {[%emt 0:00:24]} 48. a6 {[%emt 0:00:24]} Rxf3 {[%emt 0:05:11]} 49. Rb7+ {[%emt 0:00:05]} Kh6 {[%emt 0:00:59]} 50. Kxf3 {[%emt 0:00:15]} Qxh3+ {[%emt 0:00:06]} 51. Ke2 {[%emt 0:00:02]} Qg2+ {[%emt 0:00:16]} 52. Kd1 {[%emt 0:00:08]} Qf1+ {[%emt 0:00:15]} 53. Kd2 {[%emt 0:00:03]} c3+ {[%emt 0:00:09]} 0-1

[Event "22nd ETCC Women 2019"]
[Site "Batumi"]
[Date "2019.10.30"]
[Round "6.11"]
[White "Cramling Bellon, Anna"]
[Black "Longson, Sarah N"]
[Result "1/2-1/2"]
[ECO "A06"]
[WhiteElo "2164"]
[BlackElo "2073"]
[Annotator "NA"]
[PlyCount "81"]
[EventDate "2019.10.24"]
[EventType "team-tourn"]
[EventCountry "GEO"]
[SourceTitle "playchess.com"]
[Source "ChessBase"]
[SourceQuality "1"]
[WhiteTeam "Sweden"]
[BlackTeam "England"]
[WhiteTeamCountry "SWE"]
[BlackTeamCountry "ENG"]
[TimeControl "40/5400+30:1800+30"]

1. Nf3 {[%emt 0:00:00]} d5 {[%emt 0:00:00]} 2. b3 {[%emt 0:00:00]} Nf6 {[%emt 0:01:15]} 3. Bb2 {[%emt 0:00:00]} c5 {[%emt 0:01:12]} 4. e3 {[%emt 0:00:04]} Bf5 {[%emt 0:02:16]} 5. Bb5+ {[%emt 0:24:38]} Nbd7 {[%emt 0:03:57]} 6. O-O {[%emt 0:03:57]} a6 {[%emt 0:09:08]} 7. Be2 {[%emt 0:01:52]} h6 {[%emt 0:05:06]} 8. d4 {[%emt 0:03:48]} e6 {[%emt 0:00:35]} 9. Nbd2 {[%emt 0:01:14]} Rc8 {[%emt 0:04:04]} 10. c4 {[%emt 0:09:56]} dxc4 {[%emt 0:07:19]} 11. bxc4 {[%emt 0:04:12]} Be7 {[%emt 0:02:48]} 12. Ne5 {[%emt 0:12:28]} cxd4 {[%emt 0:03:59]} 13. Nxd7 {[%emt 0:00:36]} Nxd7 {[%emt 0:04:16]} 14. exd4 {[%emt 0:01:14]} O-O {[%emt 0:02:55]} 15. Rc1 {[%emt 0:05:26]} Bf6 {[%emt 0:13:16]} 16. Nb3 {[%emt 0:02:46]} a5 {[%emt 0:07:31]} 17. Ba3 {[%emt 0:09:29]} Re8 {[%emt 0:01:11]} 18. Bf3 {[%emt 0:04:06]} a4 {[%emt 0:01:37]} 19. Nc5 {[%emt 0:00:17]} Nxc5 {[%emt 0:01:10]} 20. dxc5 {[%emt 0:01:08]} Qc7 {[%emt 0:07:33]} 21. Qxa4 {[%emt 0:01:20]} Bd4 {[%emt 0:02:28]} 22. Qb3 {[%emt 0:05:30]} Rb8 {[%emt 0:02:49]} 23. Qb5 {[%emt 0:01:58]} e5 {[%emt 0:03:14]} 24. Be2 {[%emt 0:02:09]} Bd7 {[%emt 0:01:02]} 25. Qb6 {[%emt 0:00:22]} Qxb6 {[%emt 0:00:23]} 26. cxb6 {[%emt 0:00:04]} Bxb6 {[%emt 0:00:17]} 27. Bd6 {[%emt 0:00:21]} Ra8 {[%emt 0:00:37]} 28. c5 {[%emt 0:03:28]} Bd8 {[%emt 0:03:01]} 29. Bc4 {[%emt 0:00:18]} Bc6 {[%emt 0:03:07]} 30. Rfe1 {[%emt 0:01:18]} e4 {[%emt 0:00:35]} 31. Rb1 {[%emt 0:00:27]} Bg5 {[%emt 0:02:00]} 32. Re2 {[%emt 0:00:20]} Red8 {[%emt 0:01:58]} 33. h3 {[%emt 0:00:37]} Bf6 {[%emt 0:02:30]} 34. Bb5 {[%emt 0:00:44]} Bd5 {[%emt 0:00:15]} 35. a4 {[%emt 0:00:13]} Bc3 {[%emt 0:01:10]} 36. Rc2 {[%emt 0:00:33]} Ba5 {[%emt 0:00:18]} 37. Rcc1 {[%emt 0:00:32]} Rac8 {[%emt 0:00:24]} 38. Rd1 Be6 39. Be7 {[%emt 0:01:31]} Rxd1+ {[%emt 0:01:11]} 40. Rxd1 {[%emt 0:00:00]} Bb4 {[%emt 0:00:00]} 41. Rd4 {[%emt 0:20:16]} 1/2-1/2

[Event "22nd ETCC Women 2019"]
[Site "Batumi"]
[Date "2019.10.30"]
[Round "6.12"]
[White "Sliwicka, Alicja"]
[Black "Gvetadze, Sofio"]
[Result "0-1"]
[ECO "B38"]
[WhiteElo "2307"]
[BlackElo "2297"]
[Annotator "NA"]
[PlyCount "88"]
[EventDate "2019.10.24"]
[EventType "team-tourn"]
[EventCountry "GEO"]
[SourceTitle "playchess.com"]
[Source "ChessBase"]
[SourceQuality "1"]
[WhiteTeam "Poland"]
[BlackTeam "Georgia"]
[WhiteTeamCountry "POL"]
[BlackTeamCountry "GEO"]
[TimeControl "40/5400+30:1800+30"]

1. e4 {[%emt 0:00:00]} c5 {[%emt 0:00:00]} 2. Nf3 {[%emt 0:00:00]} g6 {[%emt 0:00:00]} 3. d4 {[%emt 0:00:00]} cxd4 {[%emt 0:00:00]} 4. Nxd4 {[%emt 0:00:20]} Bg7 {[%emt 0:00:00]} 5. c4 {[%emt 0:00:34]} Nc6 {[%emt 0:00:13]} 6. Be3 {[%emt 0:00:22]} Nf6 {[%emt 0:00:10]} 7. Nc3 {[%emt 0:00:16]} d6 {[%emt 0:00:11]} 8. Be2 {[%emt 0:00:16]} O-O {[%emt 0:00:15]} 9. O-O {[%emt 0:00:21]} Bd7 {[%emt 0:00:18]} 10. h3 {[%emt 0:00:12]} a6 {[%emt 0:02:45]} 11. Nf3 {[%emt 0:00:55]} Rc8 {[%emt 0:02:57]} 12. Qd2 {[%emt 0:08:36]} Be6 {[%emt 0:11:23]} 13. Ng5 {[%emt 0:05:31]} Qa5 {[%emt 0:28:37]} 14. a3 {[%emt 0:07:48]} Rfd8 {[%emt 0:09:14]} 15. b4 {[%emt 0:04:05]} Qc7 {[%emt 0:00:12]} 16. Rac1 {[%emt 0:04:39]} Qb8 {[%emt 0:01:58]} 17. f4 {[%emt 0:04:56]} Bd7 {[%emt 0:11:18]} 18. b5 {[%emt 0:10:57]} Na5 {[%emt 0:00:49]} 19. Qa2 {[%emt 0:05:45]} h6 {[%emt 0:04:06]} 20. Nf3 {[%emt 0:13:20]} axb5 {[%emt 0:02:13]} 21. Bb6 {[%emt 0:04:29]} Re8 {[%emt 0:02:10]} 22. e5 {[%emt 0:05:49]} dxe5 {[%emt 0:00:56]} 23. fxe5 {[%emt 0:00:09]} Nh5 {[%emt 0:00:16]} 24. cxb5 {[%emt 0:01:59]} Be6 {[%emt 0:00:24]} 25. Qb1 {[%emt 0:01:27]} Nb3 {[%emt 0:06:54]} 26. Rc2 {[%emt 0:00:55]} Bxe5 {[%emt 0:06:29]} 27. Ne4 {[%emt 0:04:16]} Rxc2 {[%emt 0:01:20]} 28. Qxc2 {[%emt 0:00:04]} Rc8 {[%emt 0:00:16]} 29. Qb1 {[%emt 0:04:14]} Nf4 {[%emt 0:01:02]} 30. Bd1 {[%emt 0:02:27]} Rc1 {[%emt 0:01:03]} 31. Qa2 {[%emt 0:00:45]} Bc4 {[%emt 0:04:07]} 32. Re1 {[%emt 0:01:45]} Nd3 {[%emt 0:00:18]} 33. Rf1 {[%emt 0:02:02]} Nb2 {[%emt 0:00:44]} 34. Be2 {[%emt 0:04:10]} Bxe2 {[%emt 0:00:30]} 35. Rxc1 {[%emt 0:00:05]} Nxc1 {[%emt 0:00:14]} 36. Qd5 {[%emt 0:00:12]} Bxf3 {[%emt 0:00:43]} 37. gxf3 {[%emt 0:00:05]} Ne2+ {[%emt 0:01:07]} 38. Kf1 {[%emt 0:00:59]} Nf4 {[%emt 0:00:29]} 39. Qd7 {[%emt 0:00:28]} Nc4 {[%emt 0:01:00]} 40. Bc5 {[%emt 0:00:00]} e6 {[%emt 0:00:00]} 41. h4 {[%emt 0:04:53]} b6 {[%emt 0:07:56]} 42. Be7 {[%emt 0:00:33]} Kg7 {[%emt 0:01:05]} 43. Bd8 {[%emt 0:01:10]} Qa8 {[%emt 0:02:02]} 44. Be7 {[%emt 0:09:09]} Qd5 {[%emt 0:02:17]} 0-1